fUST/lending_fUST_20240501
["ID","MTS","AMOUNT","RATE_DAILY","PERIOD"]
[325192251,1714570240587,-603.25381,0.00051928,2]
[325192252,1714570240596,-100000.0,0.00052,30]
[325192253,1714570240606,-150.81901718,0.00052114,2]
[325192254,1714570240615,-151.0,0.00052137,120]
[325192255,1714570240627,-203.8574549,0.00052345,2]
[325192256,1714570240636,-203.8574549,0.00052345,2]
[325192257,1714570240646,-203.8574549,0.00052345,2]
[325192258,1714570240658,-203.8574549,0.00052345,2]
[325192259,1714570240666,-203.8574549,0.00052345,2]
[325192260,1714570240676,-203.8574549,0.00052345,2]
[325192261,1714570240685,-203.8574549,0.00052345,2]
[325192262,1714570240694,-203.8574549,0.00052345,2]
[325192263,1714570240704,-203.8574549,0.00052345,2]
[325192264,1714570240713,-203.8574549,0.00052345,2]
[325192265,1714570240722,-203.8574549,0.00052345,2]
[325192266,1714570240732,-203.8574549,0.00052345,2]
[325192267,1714570240741,-203.8574549,0.00052345,2]
[325192268,1714570240752,-203.8574549,0.00052345,2]
[325192269,1714570240762,-203.8574549,0.00052345,2]
[325192270,1714570240771,-203.8574549,0.00052345,2]
[325192271,1714570240780,-203.8574549,0.00052345,2]
[325192272,1714570240790,-403.6038607,0.00052345,2]
[325192273,1714570240799,-100000.0,0.000525,30]
[325192274,1714570240808,-603.25381,0.00052504,2]
[325192275,1714570240817,-151.0,0.00052849,120]
[325192276,1714570240827,-100000.0,0.00053,30]
[325192277,1714570240836,-4842.28896548,0.00053,120]
[325192278,1714570240845,-418.732,0.00053009,120]
[325192279,1714570240854,-603.25381,0.00053081,2]
[325192280,1714570240864,-30245.7228023,0.000533,120]
[325192281,1714570240875,-405.563215,0.00053425,120]
[325192282,1714570240884,-163.6919334,0.00053459,3]
[325192283,1714570240893,-151.0,0.00053562,120]
[325192284,1714570240903,-603.25381,0.00053657,2]
[325192285,1714570240913,-1000.0,0.0005375,14]
[325192286,1714570240922,-1000.0,0.00053764,14]
[325192287,1714570240932,-1000.0,0.0005377,14]
[325192288,1714570240942,-471.88431839,0.00053779,14]
[325192289,1714570240951,-500.0,0.00053794,120]
[325192290,1714570240961,-500.0,0.00053794,120]
[325192291,1714570240970,-500.0,0.00053794,120]
[325192292,1714570240980,-500.0,0.00053794,120]
[325192293,1714570240989,-297.63,0.00053794,120]
[325192294,1714570240998,-22114.70638908,0.00053894,61]
[325192295,1714570241007,-151.0,0.00053894,7]
[325192296,1714570241016,-4923.61,0.00053894,7]
[325192297,1714570241026,-4923.61,0.00053894,7]
[325192298,1714570241035,-4923.61,0.00053894,7]
[325192299,1714570241044,-4923.61,0.00053894,7]
[325192300,1714570241053,-4923.61,0.00053894,7]
[325192301,1714570241062,-4923.61,0.00053894,7]
[325192302,1714570241071,-4923.61,0.00053894,7]
[325192303,1714570241081,-4923.61,0.00053894,7]
[325192304,1714570241090,-4923.61,0.00053894,7]
[325192305,1714570241099,-4923.61,0.00053894,7]
[325192306,1714570241108,-151.0,0.00053895,7]
[325192307,1714570241118,-265.381357,0.00053895,7]
[325192308,1714570241130,-265.381357,0.00053895,7]
[325192309,1714570241139,-151.669557,0.00053895,7]
[325192310,1714570241149,-151.0,0.00053895,7]
[325192311,1714570241159,-156.684914,0.00053895,7]
[325192312,1714570241168,-260.552831,0.00053895,7]
[325192313,1714570241178,-260.552831,0.00053895,7]
[325192314,1714570241187,-151.0,0.00053895,7]
[325192315,1714570241197,-151.0,0.00053895,7]
[325192316,1714570241206,-151.0,0.00053895,7]
[325192317,1714570241215,-224.114001,0.00053895,7]
[325192318,1714570241225,-229.031688,0.00053895,7]
[325192319,1714570241234,-229.031688,0.00053895,7]
[325192320,1714570241244,-496.445566,0.00053895,7]
[325192321,1714570241254,-496.445566,0.00053895,7]
[325192322,1714570241263,-226.452047,0.00053895,7]
[325192323,1714570241273,-151.0,0.00053895,7]
[325192324,1714570241282,-226.452047,0.00053895,7]
[325192325,1714570241292,-151.0,0.00053895,7]
[325192326,1714570241302,-157.372826,0.00053895,7]
[325192327,1714570241311,-157.372826,0.00053895,7]
[325192328,1714570241320,-997.6406,0.00053895,7]
[325192329,1714570241331,-220.646436,0.00053895,7]
[325192330,1714570241340,-997.6406,0.00053895,7]
[325192331,1714570241351,-220.646436,0.00053895,7]
[325192332,1714570241360,-293.818772,0.00053895,7]
[325192333,1714570241369,-293.818772,0.00053895,7]
[325192334,1714570241386,-151.0,0.00053895,7]
[325192335,1714570241396,-151.0,0.00053895,7]
[325192336,1714570241406,-151.0,0.00053895,7]
[325192337,1714570241415,-151.0,0.00053895,7]
[325192338,1714570241425,-151.0,0.00053895,7]
[325192339,1714570241437,-151.0,0.00053895,7]
[325192340,1714570241447,-393.95084,0.00053895,7]
[325192341,1714570241457,-393.95084,0.00053895,7]
[325192342,1714570241467,-151.0,0.00053895,7]
[325192343,1714570241479,-151.0,0.00053895,7]
[325192344,1714570241488,-151.0,0.00053895,7]
[325192345,1714570241498,-151.0,0.00053895,7]
[325192346,1714570241508,-51003.36442422,0.00053895,120]
[325192347,1714570241522,-512.62567878,0.00053895,120]
[325192348,1714570241545,-966.01928999,0.00053895,120]
[325192349,1714570242064,273.37336231,9.9e-05,2]
[325192387,1714570243732,-314.85282276,0.00020913,2]
[325192389,1714570243742,-74.22024285,0.00053884,3]
[325192397,1714570244115,-353.095,0.00053884,3]
[325192423,1714570248271,-292.12455879,0.00020912,2]
[325192424,1714570248281,-798.97885414,0.00020912,2]
[325192425,1714570251124,273.37336231,9.9e-05,2]
[325192426,1714570260066,273.37336231,9.9e-05,2]
[325192427,1714570263334,123141.52050348,0.0002,2]
[325192428,1714570268171,273.37336231,9.9e-05,2]
[325192429,1714570276575,273.37336231,9.9e-05,2]
[325192430,1714570281209,123141.52050348,0.0002,2]
[325192431,1714570285158,273.37336231,9.9e-05,2]
[325192432,1714570291503,229.6937319,0.0001,2]
[325192433,1714570293466,273.37336231,9.9e-05,2]
[325192434,1714570297272,93716.95899304,0.0002,2]
[325192435,1714570302455,273.37336231,9.9e-05,2]
[325192436,1714570311151,273.37336231,9.9e-05,2]
[325192437,1714570319503,273.37336231,9.9e-05,2]
[325192438,1714570328116,273.37336231,9.9e-05,2]
[325192439,1714570336500,273.37336231,9.9e-05,2]
[325192440,1714570344572,273.37336231,9.9e-05,2]
[325192441,1714570353870,273.37336231,9.9e-05,2]
[325192442,1714570362273,273.37336231,9.9e-05,2]
[325192443,1714570371051,273.37336231,9.9e-05,2]
[325192444,1714570380097,273.37336231,9.9e-05,2]
[325192445,1714570388367,273.37336231,9.9e-05,2]
[325192446,1714570397786,273.37336231,9.9e-05,2]
[325192447,1714570793047,160.777608,0.0001972,2]
[325192448,1714570864826,24900.0,0.00019994,2]
[325192449,1714570884610,154.82968734,9.999e-05,2]
[325192450,1714570923350,206.3030976,9.999e-05,2]
[325192451,1714570926972,16098.46283785,0.00019994,2]
[325192452,1714570928634,154.82968734,9.999e-05,2]
[325192453,1714570934109,521.1072121,0.00019994,2]
[325192455,1714570961686,364.03243899,9.999e-05,2]
[325192456,1714570964129,155.11300808,9.999e-05,2]
[325192457,1714570964803,309.65937468,9.999e-05,2]
[325192458,1714570967316,18545.63477786,9.999e-05,2]
[325192459,1714570968921,16106.11737102,9.999e-05,2]
[325192460,1714570969506,1313.3815191,0.0001,2]
[325192461,1714570971095,154.92873188,9.999e-05,2]
[325192462,1714570971178,565.13944552,9.999e-05,2]
[325192463,1714570972766,154.82968734,9.999e-05,2]
[325192464,1714570973933,283.95389061,9.999e-05,2]
[325192465,1714570979599,274.42227896,9.999e-05,2]
[325192466,1714570981387,550.1739942,9.999e-05,2]
[325192467,1714570984929,14319.46656744,9.999e-05,2]
[325192468,1714570996737,155.71089696,9.999e-05,2]
[325192469,1714570999971,469.01811337,9.999e-05,2]
[325192470,1714571012822,291.72490529,9.999e-05,2]
[325192471,1714571019687,1203.54975148,9.999e-05,2]
[325192472,1714571023983,354.57887113,9.999e-05,2]
[325192473,1714571024925,475.32221455,9.999e-05,2]
[325192474,1714571031860,771.73283885,9.999e-05,2]
[325192475,1714571032584,981.8517699,9.999e-05,2]
[325192476,1714571035484,1120.27919152,9.999e-05,2]
[325192477,1714571036790,700.70596004,9.999e-05,2]
[325192478,1714571039989,526.99118961,9.999e-05,2]
[325192479,1714571042224,157.99223186,9.999e-05,2]
[325192480,1714571084762,1378.68043058,9.999e-05,2]
[325192481,1714571165096,2626.7215213,0.000101,2]
[325192482,1714571205146,-272.88032191,0.00020784,2]
[325192483,1714571257608,674.1767093,0.00019784,2]
[325192484,1714571279630,193.87010555,9.999e-05,2]
[325192485,1714571305639,363.95014905,0.00019784,2]
[325192486,1714571323352,615.2889868,0.00019684,2]
[325192487,1714571342381,1492.097253,9.999e-05,2]
[325192488,1714571344295,683.41665733,9.999e-05,2]
[325192489,1714571345100,362.38148801,9.999e-05,2]
[325192490,1714571372728,717.98897193,9.999e-05,2]
[325192491,1714571387629,187.56656808,0.00019645,2]
[325192492,1714571404494,160.854376,0.00019399,2]
[325192535,1714571433563,-206.3030976,0.00020576,2]
[325192536,1714571433573,-1492.097253,0.00020577,2]
[325192537,1714571433582,-2590.79776208,0.00020577,2]
[325192538,1714571433591,-2457.03232127,0.00020578,2]
[325192540,1714571433601,-5461.4995396,0.00020578,2]
[325192542,1714571433610,-1203.54975148,0.00020578,2]
[325192544,1714571433619,-283.95389061,0.00020579,2]
[325192546,1714571433629,-583.66545878,0.00020579,2]
[325192548,1714571433642,-565.13944552,0.0002058,2]
[325192550,1714571433652,-526.99118961,0.0002058,2]
[325192551,1714571433661,-469.01811337,0.0002058,2]
[325192552,1714571433671,-1378.68043058,0.0002058,2]
[325192553,1714571433680,-9378.45996285,0.0002058,2]
[325192554,1714571433690,-1091.78088148,0.00020581,2]
[325192555,1714571433700,-154.82968734,0.00020581,2]
[325192556,1714571433709,-981.8517699,0.00020581,2]
[325192557,1714571433719,-248.21008586,0.00020582,2]
[325192558,1714571433728,-6939.61881558,0.00020671,2]
[325192559,1714571433737,-1880.12188062,0.00020672,2]
[325192560,1714571433747,-422.70056757,0.00020674,2]
[325192561,1714571433758,-193.75320246,0.00020674,2]
[325192562,1714571433771,-59226.73956329,0.00020675,2]
[325192563,1714571433780,-12660.40973088,0.00020675,2]
[325192577,1714571438514,-54774.88337942,0.00020675,2]
[325192578,1714571438525,-362.25188705,0.00020679,2]
[325192579,1714571438534,-323.94518877,0.00020679,2]
[325192580,1714571438543,-242.26073454,0.0002068,2]
[325192581,1714571438554,-2627.08475898,0.00020791,2]
[325192582,1714571438564,-473.07979558,0.00020912,2]
[325192583,1714571438573,-159.61899264,0.00020912,2]
[325192584,1714571438583,-266.38413345,0.00020912,7]
[325192585,1714571438593,-460.13643782,0.00020912,2]
[325192586,1714571438603,-330.04006716,0.00020912,2]
[325192587,1714571438612,-172.24155385,0.00020912,2]
[325192588,1714571438621,-730.70803192,0.00020912,2]
[325192589,1714571438631,-184.19793464,0.00020912,2]
[325192590,1714571438642,-200.46680797,0.00020912,2]
[325192591,1714571438651,-409.22868854,0.00020912,2]
[325192592,1714571438661,-164.0768642,0.00020912,2]
[325192593,1714571438671,-309.56660676,0.00020912,2]
[325192594,1714571438682,-309.65335774,0.00020912,2]
[325192595,1714571438691,-154.84619709,0.00020912,2]
[325192596,1714571438700,-212.29957186,0.00020912,2]
[325192597,1714571438710,-513.47404116,0.00020912,2]
[325192598,1714571438720,-208.08192276,0.00020912,2]
[325192599,1714571438729,-1170.24521543,0.00020912,2]
[325192600,1714571438739,-583.43153019,0.00020912,2]
[325192601,1714571438747,-475.13345566,0.00020912,2]
[325192602,1714571438757,-354.44654194,0.00020912,2]
[325192603,1714571438766,-665.36306353,0.00020912,2]
[325192604,1714571438779,-233.56017247,0.00020912,2]
[325192605,1714571438788,-157.93832552,0.00020912,2]
[325192606,1714571438797,-700.34995776,0.00020912,2]
[325192607,1714571438807,-549.70329734,0.00020912,2]
[325192608,1714571438818,-1584.45455669,0.00020912,7]
[325192609,1714571438826,-308.79421087,0.00020912,2]
[325192610,1714571438836,-797.63007274,0.00020912,2]
[325192611,1714571438845,-193.72430508,0.00020912,2]
[325192612,1714571438857,-335.96749206,0.00020912,2]
[325192613,1714571438868,-166.666666,0.00021918,2]
[325192614,1714571438879,-166.666666,0.00022431,2]
[325192615,1714571438889,-166.666666,0.00022944,2]
[325192616,1714571438898,-714.26625523,0.00023,2]
[325192617,1714571438910,-166.666666,0.00023456,2]
[325192618,1714571438921,-166.666666,0.00023969,2]
[325192619,1714571438930,-166.666666,0.00024482,2]
[325192620,1714571438940,-756.93644427,0.00025,2]
[325192621,1714571438949,-620.0,0.00026041,2]
[325192622,1714571438959,-317.65388294,0.00026574,2]
[325192623,1714571438968,-620.0,0.00027343,2]
[325192624,1714571438978,-220.96622212,0.00028,2]
[325192625,1714571438987,-248.21008586,0.00028741,2]
[325192626,1714571438997,-250.0,0.000299,2]
[325192627,1714571439007,-278.18848216,0.0003,2]
[325192628,1714571439016,-447.2209758,0.00032,4]
[325192629,1714571439026,-466.46671286,0.00034,4]
[325192630,1714571439035,-1108.44070344,0.00035,4]
[325192631,1714571439045,-554.45471951,0.00035,30]
[325192632,1714571439055,-1729.98661472,0.00035,30]
[325192633,1714571439065,-154.82968734,0.00035,4]
[325192634,1714571439075,-597.98045973,0.00035,2]
[325192635,1714571439084,-447.24606383,0.00035,10]
[325192636,1714571439093,-281.425025,0.00035616,120]
[325192637,1714571439103,-25785.01,0.00035616,3]
[325192638,1714571439112,-21487.51,0.00035616,3]
[325192639,1714571439121,-248.21008586,0.000369,2]
[325192640,1714571439131,-2049.08470554,0.00037,2]
[325192641,1714571439142,-10664.09300882,0.00037,5]
[325192642,1714571439152,-395.44036662,0.00038,30]
[325192643,1714571439162,-900.0,0.00038,120]
[325192644,1714571439172,-603.59015,0.00039332,2]
[325192645,1714571439184,-603.59016,0.0003994,2]
[325192646,1714571439194,-5104.97968368,0.0004,4]
[325192647,1714571439204,-956.61782471,0.0004,10]
[325192648,1714571439213,-300.0,0.0004,3]
[325192649,1714571439223,-486.33472313,0.0004,2]
[325192650,1714571439232,-1520.24750243,0.0004,4]
[325192651,1714571439242,-603.59015,0.00040548,2]
[325192652,1714571439251,-252.7509919,0.00041,2]
[325192653,1714571439260,-500.0,0.00041096,31]
[325192654,1714571439269,-500.0,0.00041096,31]
[325192655,1714571439279,-500.0,0.00041096,31]
[325192656,1714571439289,-227.92517591,0.00041096,31]
[325192657,1714571439298,-603.59016,0.00041156,2]
[325192658,1714571439307,-281.425025,0.00041553,120]
[325192659,1714571439317,-603.59015,0.00041764,2]
[325192660,1714571439326,-158.79898101,0.00041774,30]
[325192661,1714571439335,-500.0,0.00042,45]
[325192662,1714571439345,-154.82968734,0.0004234,10]
[325192663,1714571439354,-603.59016,0.00042372,2]
[325192664,1714571439363,-1695.41656809,0.000425,30]
[325192665,1714571439373,-711.47856543,0.00042684,30]
[325192666,1714571439383,-154.87424562,0.0004276,30]
[325192667,1714571439394,-500.0,0.000429,42]
[325192668,1714571439403,-603.59015,0.00042979,2]
[325192669,1714571439412,-603.59016,0.00043587,2]
[325192670,1714571439421,-167.31538515,0.000437,7]
[325192671,1714571439430,-167.31538515,0.000437,7]
[325192672,1714571439440,-167.31538515,0.000437,7]
[325192673,1714571439449,-167.31538515,0.000437,7]
[325192674,1714571439459,-167.31538515,0.000437,7]
[325192675,1714571439469,-167.31538515,0.000437,7]
[325192676,1714571439478,-167.31538515,0.000437,7]
[325192677,1714571439487,-167.31538515,0.000437,7]
[325192678,1714571439497,-167.31538515,0.000437,7]
[325192679,1714571439507,-167.31538515,0.000437,7]
[325192680,1714571439516,-167.31538515,0.000437,7]
[325192681,1714571439525,-167.31538515,0.000437,7]
[325192683,1714571439535,-167.31538515,0.000437,7]
[325192685,1714571439544,-167.31538515,0.000437,7]
[325192687,1714571439553,-167.31538515,0.000437,7]
[325192689,1714571439562,-167.31538515,0.000437,7]
[325192691,1714571439571,-167.31538515,0.000437,7]
[325192693,1714571439581,-167.31538515,0.000437,7]
[325192695,1714571439590,-167.31538515,0.000437,7]
[325192697,1714571439600,-167.31538,0.000437,7]
[325192698,1714571439609,-1000.0,0.000437,42]
[325192699,1714571439619,-165.8168504,0.00043725,49]
[325192700,1714571439628,-2250.0,0.00043725,60]
[325192702,1714571439638,-2250.0,0.00043725,60]
[325192711,1714571439806,-158.79898101,0.00043766,30]
[325192712,1714571439816,-159.71048373,0.00044,120]
[325192713,1714571439826,-603.59015,0.00044195,2]
[325192714,1714571439835,-1489.1,0.00044413,3]
[325192715,1714571439846,-157.84606034,0.00044706,30]
[325192716,1714571439856,-603.59016,0.00044803,2]
[325192718,1714571439867,-151.0,0.00045,120]
[325192720,1714571439877,-603.59015,0.00045411,2]
[325192721,1714571439888,-151.0,0.00045726,120]
[325192723,1714571439897,-603.59016,0.00046019,2]
[325192725,1714571439906,-151.0,0.00046438,120]
[325192726,1714571439915,-603.59016,0.00046627,2]
[325192727,1714571439925,-158.79898101,0.00047101,30]
[325192728,1714571439934,-151.0,0.00047151,120]
[325192729,1714571439944,-603.59015,0.00047235,2]
[325192730,1714571439954,-281.425025,0.00047489,120]
[325192731,1714571439963,-603.59016,0.00047842,2]
[325192732,1714571439973,-151.0,0.00047863,120]
[325192733,1714571439982,-268.39235719,0.00048,2]
[325192734,1714571439991,-711.47856543,0.00048347,30]
[325192735,1714571440000,-603.59015,0.0004845,2]
[325192736,1714571440010,-151.0,0.00048575,120]
[325192737,1714571440019,-603.59016,0.00049058,2]
[325192738,1714571440028,-151.0,0.00049288,120]
[325192739,1714571440037,-603.59015,0.00049666,2]
[325192740,1714571440046,-165.846667,0.00049863,2]
[325192741,1714571440055,-400.590165,0.00049863,2]
[325192742,1714571440065,-243.108975,0.00049863,2]
[325192743,1714571440075,-154.81422293,0.0005,30]
[325192744,1714571440084,-960.60835328,0.0005,60]
[325192745,1714571440093,-1000.0,0.0005,120]
[325192746,1714571440103,-151.0,0.0005,120]
[325192747,1714571440111,-500.0,0.0005,100]
[325192748,1714571440121,-380.64359242,0.00050083,60]
[325192749,1714571440130,-603.59016,0.00050274,2]
[325192750,1714571440141,-711.47856543,0.00050616,60]
[325192752,1714571440150,-151.0,0.00050712,120]
[325192753,1714571440159,-603.59015,0.00050882,2]
[325192755,1714571440169,-3142.69986047,0.00050989,4]
[325192757,1714571440178,-827.00898769,0.00051,120]
[325192758,1714571440188,-4000.0,0.00051,30]
[325192759,1714571440198,-5000.0,0.000513,4]
[325192760,1714571440207,-151.0,0.00051425,120]
[325192761,1714571440216,-603.59016,0.0005149,2]
[325192762,1714571440226,-2306.18,0.00052,120]
[325192763,1714571440235,-603.59015,0.00052098,2]
[325192764,1714571440244,-151.0,0.00052137,120]
[325192765,1714571440254,-150.81901718,0.00052277,2]
[325192766,1714571440263,-203.8574549,0.00052319,2]
[325192767,1714571440273,-203.8574549,0.00052319,2]
[325192768,1714571440282,-203.8574549,0.00052319,2]
[325192769,1714571440291,-203.8574549,0.00052319,2]
[325192770,1714571440300,-203.8574549,0.00052319,2]
[325192771,1714571440310,-203.8574549,0.00052319,2]
[325192772,1714571440319,-203.8574549,0.00052319,2]
[325192773,1714571440329,-203.8574549,0.00052319,2]
[325192774,1714571440338,-203.8574549,0.00052319,2]
[325192775,1714571440347,-407.7149098,0.00052319,2]
[325192776,1714571440357,-407.7149098,0.00052319,2]
[325192777,1714571440366,-407.7149098,0.00052319,2]
[325192778,1714571440375,-407.7149098,0.00052319,2]
[325192779,1714571440384,-418.732,0.00052471,120]
[325192780,1714571440395,-213.617,0.00052471,120]
[325192781,1714571440404,-150.064,0.00052471,120]
[325192782,1714571440414,-603.59016,0.00052705,2]
[325192783,1714571440423,-150.0,0.0005282,59]
[325192784,1714571440433,-151.0,0.00052849,120]
[325192785,1714571440443,-166.0,0.00053,120]
[325192786,1714571440452,-4842.28896648,0.00053,120]
[325192787,1714571440461,-263.5543905,0.000532,2]
[325192788,1714571440471,-879.94320873,0.00053277,15]
[325192789,1714571440481,-213.76106557,0.00053278,2]
[325192790,1714571440490,-22114.70638908,0.000533,61]
[325192791,1714571440499,-30245.7228023,0.000533,120]
[325192792,1714571440508,-10000.0,0.000533,2]
[325192793,1714571440519,-603.59016,0.00053313,2]
[325192794,1714571440528,-263.5543905,0.00053346,2]
[325192795,1714571440537,-281.425025,0.00053425,120]
[325192796,1714571440547,-163.6919334,0.00053459,3]
[325192797,1714571440556,-263.5543905,0.00053491,2]
[325192798,1714571440565,-151.0,0.00053562,120]
[325192799,1714571440575,-1000.0,0.00053613,14]
[325192800,1714571440584,-1000.0,0.00053621,14]
[325192801,1714571440594,-263.5543905,0.00053637,2]
[325192802,1714571440603,-1000.0,0.00053675,14]
[325192803,1714571440613,-1000.0,0.00053692,14]
[325192804,1714571440622,-1000.0,0.00053712,14]
[325192805,1714571440631,-300.0,0.00053722,14]
[325192806,1714571440643,-1000.0,0.00053747,14]
[325192807,1714571440652,-1000.0,0.00053749,14]
[325192808,1714571440660,-1000.0,0.00053778,14]
[325192809,1714571440670,-2000.0,0.00053779,2]
[325192810,1714571440679,-1000.0,0.00053781,14]
[325192811,1714571440688,-88888.0,0.00053782,120]
[325192812,1714571440698,-263.5543905,0.00053782,2]
[325192813,1714571440707,-500.0,0.00053794,120]
[325192814,1714571440716,-500.0,0.00053794,120]
[325192815,1714571440726,-500.0,0.00053794,120]
[325192816,1714571440735,-500.0,0.00053794,120]
[325192817,1714571440745,-297.63,0.00053794,120]
[325192818,1714571440754,-484.87153688,0.00053839,14]
[325192819,1714571440767,-40000.00000001,0.0005387,2]
[325192820,1714571440781,-10000.0,0.00053874,2]
[325192821,1714571440791,-10000.0,0.00053875,2]
[325192822,1714571440801,-10000.0,0.00053876,2]
[325192823,1714571440811,-10000.0,0.00053877,2]
[325192824,1714571440821,-9286.04347363,0.00053878,2]
[325192825,1714571440830,-10000.0,0.00053878,2]
[325192826,1714571440840,-50000.0,0.00053879,2]
[325192827,1714571440849,-10000.000001,0.0005388,2]
[325192828,1714571440859,-151.0,0.0005388,7]
[325192829,1714571440870,-151.0,0.0005388,7]
[325192830,1714571440880,-151.0,0.0005388,7]
[325192831,1714571440890,-160.0,0.00053881,60]
[325192832,1714571440899,-160.46474346,0.00053881,60]
[325192833,1714571440908,-351.07749559,0.00053881,4]
[325192834,1714571440917,-4923.61,0.00053881,7]
[325192835,1714571440927,-4923.61,0.00053881,7]
[325192836,1714571440936,-4923.61,0.00053881,7]
[325192837,1714571440945,-4923.61,0.00053881,7]
[325192838,1714571440954,-4923.61,0.00053881,7]
[325192839,1714571440964,-4923.61,0.00053881,7]
[325192840,1714571440973,-4923.61,0.00053881,7]
[325192841,1714571440983,-4923.61,0.00053881,7]
[325192842,1714571440992,-4923.61,0.00053881,7]
[325192843,1714571441001,-4923.61,0.00053881,7]
[325192844,1714571441011,-5033.96699466,0.00053882,4]
[325192845,1714571441022,-155723.7266896,0.00053882,120]
[325192846,1714571441036,-782.9863278,0.00053882,120]
[325192894,1714571443428,-997.6406,0.00053879,7]
[325192895,1714571443438,-204468.31055657,0.00053882,120]
[325192896,1714571443449,-2465.71462459,0.00053882,120]
[325192898,1714571447868,-154.82968734,0.00020912,2]
[325192899,1714571447878,-1378.68043058,0.00020912,2]
[325192900,1714571447897,-9378.45996285,0.00020913,2]
[325192901,1714571447909,-1091.78088148,0.00020913,2]
[325192902,1714571447919,-1606.48872088,0.00020913,2]
[325192903,1714571447929,-1202.66590372,0.00020913,2]
[325192904,1714571447939,-617.22632396,0.00020913,2]
[325192905,1714571447950,-300.00000002,0.0004,11]
[325192906,1714571447959,-500.0,0.00041096,31]
[325192907,1714571447969,-200.0,0.00041096,31]
[325192908,1714571447979,-403.6038607,0.00051497,2]
[325192909,1714571447989,-150.102,0.00052471,120]
[325192910,1714571447999,-11853.32146547,0.00053872,3]
[325192913,1714571526827,154.82968734,9.999e-05,2]
[325192914,1714571663267,5369.7353918,0.000125,2]
[325192916,1714571681622,197.76154167,0.00024,120]
[325192917,1714571682138,21961.19647975,0.0002,120]
[325192918,1714571743237,5980.5937287,0.00019661,2]
[325192919,1714571749553,250.0,0.00019662,2]
[325192920,1714571855224,520.59853225,9.999e-05,2]
[325192922,1714571919992,24900.0,0.00019644,2]
[325192927,1714572067846,160.787358,0.00019354,2]
[325192928,1714572177587,206.3030976,9.999e-05,2]
[325192931,1714572221383,1378.68043058,9.999e-05,2]
[325192932,1714572239078,1492.097253,9.999e-05,2]
[325192934,1714572258833,1091.78088148,9.999e-05,2]
[325192936,1714572276246,285.10266743,9.999e-05,2]
[325192937,1714572284280,193.21743915,9.999e-05,2]
[325192938,1714572285778,364.03243899,9.999e-05,2]
[325192939,1714572285826,155.47035805,9.999e-05,2]
[325192940,1714572286226,229.02313117,9.999e-05,2]
[325192941,1714572286375,154.95448489,9.999e-05,2]
[325192943,1714572289952,154.87812226,9.999e-05,2]
[325192944,1714572294227,285.10266743,9.999e-05,2]
[325192945,1714572296110,526.99118961,9.999e-05,2]
[325192946,1714572303757,364.03243899,9.999e-05,2]
[325192948,1714572310563,283.95389061,9.999e-05,2]
[325192949,1714572316223,341.85675118,9.999e-05,2]
[325192950,1714572325760,365.19499918,9.999e-05,2]
[325192952,1714572341441,154.84515485,9.999e-05,2]
[325192953,1714572341470,565.13944552,9.999e-05,2]
[325192954,1714572342154,583.66545878,9.999e-05,2]
[325192956,1714572366399,154.84515485,9.999e-05,2]
[325192957,1714572433609,24900.0,0.000196,2]
[325192958,1714572471011,154.84515485,9.999e-05,2]
[325193028,1714572633383,-5461.4995396,0.00020579,2]
[325193031,1714572633393,-1880.12188062,0.0002058,2]
[325193033,1714572633403,-583.66545878,0.0002058,2]
[325193035,1714572633412,-206.3030976,0.0002058,2]
[325193036,1714572633422,-28.9395505,0.0002058,2]
[325193039,1714572633433,-255.01434011,0.0002058,2]
[325193041,1714572633443,-56.85565989,0.0002058,2]
[325193043,1714572633454,-24383.44479566,0.0002058,2]
[325193046,1714572635479,318.30309536,0.000189,2]
[325193098,1714572638478,-2457.03232127,0.00020578,2]
[325193099,1714572638488,-10757.86486478,0.0002058,2]
[325193100,1714572638500,-17659.21084051,0.0002058,2]